{"text_format":"1","workbook":"xlsx","n_sheets":3,"sheets":["NOR_01-14-009","BExRepositorySheet","NO BORRAR FUENTE DE DATOS"],"not_rendered":{"charts":0,"images":2,"macros":0,"external_links":0,"defined_names":2,"comments":0,"pivot_tables":0},"unopened":[],"bounds":{"document_bytes":16777216,"sheet_cells":100000,"rows_first":2000,"rows_last":500,"rows_between":2000,"halvings":0,"cell_chars":16384,"cell_head_chars":4096},"cells_cut":0,"cells_raw":0,"read":"whole","date_system":"1900"}

{"sheet":"NOR_01-14-009","index":0,"n_rows":42,"n_cols":13,"rows_kept":42,"cut":false,"hidden":false,"merged":[[6,0,8,0],[6,2,8,2],[6,3,8,3],[6,12,8,12],[6,1,8,1],[6,4,7,5],[6,6,7,7],[6,8,7,9],[6,10,7,11]]}
[]
["Municipio de Garcìa, Nuevo León"]
["Formato de programas con recursos concurrente por orden de gobierno"]
["Informe Acumulado al 30 de Junio del 2022"]
["Elaborado el 10 de Agosto del 2022"]
[]
["Ejercicio","Nombre del Programa\n","Ramo","Fondo","Federal\n",null,"Estatal",null,"Municipal",null,"Otros",null,"Monto\nTotal"]
[]
[null,null,null,null,"Dependencia / Entidad","Aportación (Monto)\n*","Dependencia / Entidad","Aportación (Monto)\n*","Dependencia / Entidad","Aportación (Monto)\n*","Dependencia / Entidad","Aportación (Monto)\n*"]
[2022,"5.1. García por la Seguridad","33 Aportaciones Federales para Entidades Federativas y Municipios","R33 F Fortalecimiento Municipios y DF","INST. DE POLICIA PREVENTIVA MUNICIPAL",952875.84,null,null,null,null,null,null,{"$f":"SUM(F10+H10+J10+L10)","v":952875.84}]
[null,"5.1. García por la Seguridad","33 Aportaciones Federales para Entidades Federativas y Municipios","R33 F Fortalecimiento Municipios y DF","INST. DE POLICIA PREVENTIVA MUNICIPAL",15631125.109999999,null,null,null,null,null,null,{"$f":"SUM(F11+H11+J11+L11)","v":15631125.109999999}]
[null,"5.1. García por la Seguridad","FE Fondo Estatal","FE FONDO DE SEGURIDAD PARA MUNICIPIOS",null,null,"INST. DE POLICIA PREVENTIVA MUNICIPAL",2324555,null,null,null,null,2324555]
[null,"1.1. García Por la Comunidad","33 Aportaciones Federales para Entidades Federativas y Municipios","R33 F Fortalecimiento Municipios y DF","INST. DE POLICIA PREVENTIVA MUNICIPAL",0,null,null,null,null,null,null,0]
[null,"5.1. García por la Seguridad","33 Aportaciones Federales para Entidades Federativas y Municipios","R33 F Fortalecimiento Municipios y DF","SEC. DESARROLLO ECONOMICO Y TURISMO",2749.2,null,null,null,null,null,null,2749.2]
[null,"5.1. García por la Seguridad","33 Aportaciones Federales para Entidades Federativas y Municipios","R33 F Fortalecimiento Municipios y DF","INST. DE POLICIA PREVENTIVA MUNICIPAL",81348.479999999996,null,null,null,null,null,null,81348.479999999996]
[null,"5.1. García por la Seguridad","33 Aportaciones Federales para Entidades Federativas y Municipios","R33 F Fortalecimiento Municipios y DF","SECRETARIA DE PARTICIPACION CIUDADANA",3944,null,null,null,null,null,null,3944]
[null,"5.1. García por la Seguridad","33 Aportaciones Federales para Entidades Federativas y Municipios","R33 F Fortalecimiento Municipios y DF","INST. DE POLICIA PREVENTIVA MUNICIPAL",106546.16,null,null,null,null,null,null,106546.16]
[null,"5.1. García por la Seguridad","33 Aportaciones Federales para Entidades Federativas y Municipios","R33 F Fortalecimiento Municipios y DF","SECRETARIA DEL AYUNTAMIENTO",0,null,null,null,null,null,null,0]
[null,"5.1. García por la Seguridad","33 Aportaciones Federales para Entidades Federativas y Municipios","R33 F Fortalecimiento Municipios y DF","INST. DE POLICIA PREVENTIVA MUNICIPAL",0,null,null,null,null,null,null,0]
[null,"3.1. García por el Urbanismo Social","33 Aportaciones Federales para Entidades Federativas y Municipios","R33 F Infraestructura Social Municipal","SECRETARIA DE OBRAS PUBLICAS",0,null,null,null,null,null,null,0]
[null,"1.1. García Por la Comunidad","FE Fondo Estatal","FE SIPINNA",null,null,"DESARROLLO INTEGRAL DE LA FAMILIA",91768.99,null,null,null,null,91768.99]
[null,"3.1. García por el Urbanismo Social","33 Aportaciones Federales para Entidades Federativas y Municipios","R33 F Fortalecimiento Municipios y DF","SECRETARIA DE OBRAS PUBLICAS",0,null,null,null,null,null,null,0]
[null,"3.1. García por el Urbanismo Social","33 Aportaciones Federales para Entidades Federativas y Municipios","R33 F Fortalecimiento Municipios y DF","SECRETARIA DE OBRAS PUBLICAS",1086499.8600000001,null,null,null,null,null,null,1086499.8600000001]
[null,"3.1. García por el Urbanismo Social","33 Aportaciones Federales para Entidades Federativas y Municipios","R33 F Infraestructura Social Municipal","SECRETARIA DE OBRAS PUBLICAS",1491298.34,null,null,null,null,null,null,1491298.34]
[null,"3.1. García por el Urbanismo Social","33 Aportaciones Federales para Entidades Federativas y Municipios","R33 F Infraestructura Social Municipal","SECRETARIA DE OBRAS PUBLICAS",2790846.83,null,null,null,null,null,null,2790846.83]
[null,"3.1. García por el Urbanismo Social","33 Aportaciones Federales para Entidades Federativas y Municipios","R33 F Infraestructura Social Municipal","SECRETARIA DE OBRAS PUBLICAS",3276727.6,null,null,null,null,null,null,3276727.6]
[null,"3.2. García por la Funcionalidad","33 Aportaciones Federales para Entidades Federativas y Municipios","R33 F Infraestructura Social Municipal","SECRETARIA DE OBRAS PUBLICAS",3407941.5,null,null,null,null,null,null,3407941.5]
[null,"3.2. García por la Funcionalidad","33 Aportaciones Federales para Entidades Federativas y Municipios","R33 F Infraestructura Social Municipal","SECRETARIA DE OBRAS PUBLICAS",1069798.48,null,null,null,null,null,null,1069798.48]
[null,"3.1. García por el Urbanismo Social","33 Aportaciones Federales para Entidades Federativas y Municipios","R33 F Infraestructura Social Municipal","SECRETARIA DE OBRAS PUBLICAS",0,null,null,null,null,null,null,0]
[null,"3.1. García por el Urbanismo Social","33 Aportaciones Federales para Entidades Federativas y Municipios","R33 F Infraestructura Social Municipal","SECRETARIA DE OBRAS PUBLICAS",0,null,null,null,null,null,null,0]
[null,"3.1. García por el Urbanismo Social","33 Aportaciones Federales para Entidades Federativas y Municipios","R33 F Infraestructura Social Municipal","SECRETARIA DE OBRAS PUBLICAS",0,null,null,null,null,null,null,0]
[null,"3.1. García por el Urbanismo Social","33 Aportaciones Federales para Entidades Federativas y Municipios","R33 F Infraestructura Social Municipal","SECRETARIA DE OBRAS PUBLICAS",0,null,null,null,null,null,null,0]
[null,"3.1. García por el Urbanismo Social","33 Aportaciones Federales para Entidades Federativas y Municipios","R33 F Infraestructura Social Municipal","SECRETARIA DE OBRAS PUBLICAS",1669123.3,null,null,null,null,null,null,1669123.3]
[null,"3.1. García por el Urbanismo Social","33 Aportaciones Federales para Entidades Federativas y Municipios","R33 F Infraestructura Social Municipal","SECRETARIA DE OBRAS PUBLICAS",1499893.51,null,null,null,null,null,null,1499893.51]
[null,"3.1. García por el Urbanismo Social","33 Aportaciones Federales para Entidades Federativas y Municipios","R33 F Infraestructura Social Municipal","SECRETARIA DE OBRAS PUBLICAS",3043674.42,null,null,null,null,null,null,3043674.42]
[null,"1.1. García Por la Comunidad","FE Fondo Estatal","FE SIPINNA",null,null,"SECRETARIA DE OBRAS PUBLICAS",2038077.83,null,null,null,null,2038077.83]
[null,"3.1. García por el Urbanismo Social","33 Aportaciones Federales para Entidades Federativas y Municipios","R33 F Infraestructura Social Municipal","SECRETARIA DE OBRAS PUBLICAS",1194540.8799999999,null,null,null,null,null,null,1194540.8799999999]
[null,"3.1. García por el Urbanismo Social","33 Aportaciones Federales para Entidades Federativas y Municipios","R33 F Infraestructura Social Municipal","SECRETARIA DE OBRAS PUBLICAS",157955.29,null,null,null,null,null,null,157955.29]
[null,"3.1. García por el Urbanismo Social","33 Aportaciones Federales para Entidades Federativas y Municipios","R33 F Infraestructura Social Municipal","SECRETARIA DE OBRAS PUBLICAS",125602.26,null,null,null,null,null,null,125602.26]
[null,"3.1. García por el Urbanismo Social","33 Aportaciones Federales para Entidades Federativas y Municipios","R33 F Infraestructura Social Municipal","SECRETARIA DE OBRAS PUBLICAS",566506.04,null,null,null,null,null,null,566506.04]
[null,null,null,null,null,{"$f":"SUM(F10:F40)","v":38158997.100000001},null,{"$f":"SUM(H10:H40)","v":4454401.82},null,{"$f":"SUM(J10:J35)","v":0},null,{"$f":"SUM(L10:L35)","v":0},{"$f":"SUM(M10:M35)","v":38530716.619999997}]
["* El monto que se refleja en Aportación es el correspondiente al Egreso Devengado.\t"]

{"sheet":"BExRepositorySheet","index":1,"n_rows":1,"n_cols":1,"rows_kept":1,"cut":false,"hidden":true,"merged":[]}
[7]

{"sheet":"NO BORRAR FUENTE DE DATOS","index":2,"n_rows":103,"n_cols":12,"rows_kept":103,"cut":false,"hidden":true,"merged":[]}
["","","","","","","Fte. Financiamiento","1","4","5","6","Resultado total"]
["Ejercicio Cve. presu","Programa","","Ramo","","Fondo (Egresos)","","Presupuesto","Presupuesto","Presupuesto","Presupuesto","Presupuesto"]
["11","B02","II.2 Desarrollo Urbano","33","Ramo 33 Aport Fed para Entidades Federativas y Municipios","FOR","FONDO DE APORTACIONES PARA EL FORTALECIMIENTO DE LOS MUNICIP",{"$error":"#NAME?"},{"$error":"#NAME?"},{"$error":"#NAME?"},{"$error":"#NAME?"},{"$error":"#NAME?"}]
["12","B02","II.2 Desarrollo Urbano","33","Ramo 33 Aport Fed para Entidades Federativas y Municipios","FOR","FONDO DE APORTACIONES PARA EL FORTALECIMIENTO DE LOS MUNICIP",{"$error":"#NAME?"},{"$error":"#NAME?"},{"$error":"#NAME?"},{"$error":"#NAME?"},{"$error":"#NAME?"}]
["12","B03","II.3 Obra Pública","16","Ramo 16 Sría del Medio Ambiente y Rec Naturales (SEMARNAT)","CNA","PROGRAMA APAZU  CONAGUA",{"$error":"#NAME?"},{"$error":"#NAME?"},{"$error":"#NAME?"},{"$error":"#NAME?"},{"$error":"#NAME?"}]
["12","C01","III.1 Prevención del Delito","04","Ramo 04 Gobernación","SUB","SUBSIDIO EN MATERIA DE SEGURIDAD PÚBLICA A ENTIDADES FEDERAT",{"$error":"#NAME?"},{"$error":"#NAME?"},{"$error":"#NAME?"},{"$error":"#NAME?"},{"$error":"#NAME?"}]
["12","C01","III.1 Prevención del Delito","33","Ramo 33 Aport Fed para Entidades Federativas y Municipios","FOR","FONDO DE APORTACIONES PARA EL FORTALECIMIENTO DE LOS MUNICIP",{"$error":"#NAME?"},{"$error":"#NAME?"},{"$error":"#NAME?"},{"$error":"#NAME?"},{"$error":"#NAME?"}]
["12","C04","III.4 Protección Civil","33","Ramo 33 Aport Fed para Entidades Federativas y Municipios","FOR","FONDO DE APORTACIONES PARA EL FORTALECIMIENTO DE LOS MUNICIP",{"$error":"#NAME?"},{"$error":"#NAME?"},{"$error":"#NAME?"},{"$error":"#NAME?"},{"$error":"#NAME?"}]
["12","D02","IV.2 Rendición de Cuentas","16","Ramo 16 Sría del Medio Ambiente y Rec Naturales (SEMARNAT)","CNA","PROGRAMA APAZU  CONAGUA",{"$error":"#NAME?"},{"$error":"#NAME?"},{"$error":"#NAME?"},{"$error":"#NAME?"},{"$error":"#NAME?"}]
["12","D02","IV.2 Rendición de Cuentas","33","Ramo 33 Aport Fed para Entidades Federativas y Municipios","FOR","FONDO DE APORTACIONES PARA EL FORTALECIMIENTO DE LOS MUNICIP",{"$error":"#NAME?"},{"$error":"#NAME?"},{"$error":"#NAME?"},{"$error":"#NAME?"},{"$error":"#NAME?"}]
["13","B02","II.2 Desarrollo Urbano","33","Ramo 33 Aport Fed para Entidades Federativas y Municipios","FOR","FONDO DE APORTACIONES PARA EL FORTALECIMIENTO DE LOS MUNICIP",{"$error":"#NAME?"},{"$error":"#NAME?"},{"$error":"#NAME?"},{"$error":"#NAME?"},{"$error":"#NAME?"}]
["13","B03","II.3 Obra Pública","15","Ramo 15 Sria. de Des Agrario, Territorial y Urbano (SEDATU)","VIV","PROGRAMA VIVIENDA DIGNA",{"$error":"#NAME?"},{"$error":"#NAME?"},{"$error":"#NAME?"},{"$error":"#NAME?"},{"$error":"#NAME?"}]
["13","B03","II.3 Obra Pública","16","Ramo 16 Sría del Medio Ambiente y Rec Naturales (SEMARNAT)","CNA","PROGRAMA APAZU  CONAGUA",{"$error":"#NAME?"},{"$error":"#NAME?"},{"$error":"#NAME?"},{"$error":"#NAME?"},{"$error":"#NAME?"}]
["13","B03","II.3 Obra Pública","23","Ramo 23 Provisiones Salariales y Económicas","DRE","PROYECTOS DE DESARROLLO REGIONAL",{"$error":"#NAME?"},{"$error":"#NAME?"},{"$error":"#NAME?"},{"$error":"#NAME?"},{"$error":"#NAME?"}]
["13","B03","II.3 Obra Pública","23","Ramo 23 Provisiones Salariales y Económicas","PRE","PROGRAMAS REGIONALES",{"$error":"#NAME?"},{"$error":"#NAME?"},{"$error":"#NAME?"},{"$error":"#NAME?"},{"$error":"#NAME?"}]
["13","B03","II.3 Obra Pública","33","Ramo 33 Aport Fed para Entidades Federativas y Municipios","FIS","FONDO DE APORTACIONES PARA LA INFRAESTRUCTURA SOCIAL MUNICIP",{"$error":"#NAME?"},{"$error":"#NAME?"},{"$error":"#NAME?"},{"$error":"#NAME?"},{"$error":"#NAME?"}]
["13","B03","II.3 Obra Pública","33","Ramo 33 Aport Fed para Entidades Federativas y Municipios","FOR","FONDO DE APORTACIONES PARA EL FORTALECIMIENTO DE LOS MUNICIP",{"$error":"#NAME?"},{"$error":"#NAME?"},{"$error":"#NAME?"},{"$error":"#NAME?"},{"$error":"#NAME?"}]
["13","B03","II.3 Obra Pública","RM","Recurso Municipal y Ramo 28","028","RECURSOS MUNICIPALES Y RAMO 28",{"$error":"#NAME?"},{"$error":"#NAME?"},{"$error":"#NAME?"},{"$error":"#NAME?"},{"$error":"#NAME?"}]
["13","C01","III.1 Prevención del Delito","33","Ramo 33 Aport Fed para Entidades Federativas y Municipios","FOR","FONDO DE APORTACIONES PARA EL FORTALECIMIENTO DE LOS MUNICIP",{"$error":"#NAME?"},{"$error":"#NAME?"},{"$error":"#NAME?"},{"$error":"#NAME?"},{"$error":"#NAME?"}]
["13","D02","IV.2 Rendición de Cuentas","15","Ramo 15 Sria. de Des Agrario, Territorial y Urbano (SEDATU)","ESP","PROGRAMA RESCATE DE ESPACIOS PÚBLICOS",{"$error":"#NAME?"},{"$error":"#NAME?"},{"$error":"#NAME?"},{"$error":"#NAME?"},{"$error":"#NAME?"}]
["13","D02","IV.2 Rendición de Cuentas","15","Ramo 15 Sria. de Des Agrario, Territorial y Urbano (SEDATU)","HAB","PROGRAMA HABITAT",{"$error":"#NAME?"},{"$error":"#NAME?"},{"$error":"#NAME?"},{"$error":"#NAME?"},{"$error":"#NAME?"}]
["13","D02","IV.2 Rendición de Cuentas","15","Ramo 15 Sria. de Des Agrario, Territorial y Urbano (SEDATU)","VIV","PROGRAMA VIVIENDA DIGNA",{"$error":"#NAME?"},{"$error":"#NAME?"},{"$error":"#NAME?"},{"$error":"#NAME?"},{"$error":"#NAME?"}]
["13","D02","IV.2 Rendición de Cuentas","23","Ramo 23 Provisiones Salariales y Económicas","DRE","PROYECTOS DE DESARROLLO REGIONAL",{"$error":"#NAME?"},{"$error":"#NAME?"},{"$error":"#NAME?"},{"$error":"#NAME?"},{"$error":"#NAME?"}]
["13","D02","IV.2 Rendición de Cuentas","23","Ramo 23 Provisiones Salariales y Económicas","FOP","FONDO DE PAVIMENTACIÓN, ESPACIOS DEPORTIVOS, ALUMBRADO PÚBLI",{"$error":"#NAME?"},{"$error":"#NAME?"},{"$error":"#NAME?"},{"$error":"#NAME?"},{"$error":"#NAME?"}]
["13","D02","IV.2 Rendición de Cuentas","23","Ramo 23 Provisiones Salariales y Económicas","PRE","PROGRAMAS REGIONALES",{"$error":"#NAME?"},{"$error":"#NAME?"},{"$error":"#NAME?"},{"$error":"#NAME?"},{"$error":"#NAME?"}]
["13","D02","IV.2 Rendición de Cuentas","33","Ramo 33 Aport Fed para Entidades Federativas y Municipios","FIS","FONDO DE APORTACIONES PARA LA INFRAESTRUCTURA SOCIAL MUNICIP",{"$error":"#NAME?"},{"$error":"#NAME?"},{"$error":"#NAME?"},{"$error":"#NAME?"},{"$error":"#NAME?"}]
["13","D02","IV.2 Rendición de Cuentas","33","Ramo 33 Aport Fed para Entidades Federativas y Municipios","FOR","FONDO DE APORTACIONES PARA EL FORTALECIMIENTO DE LOS MUNICIP",{"$error":"#NAME?"},{"$error":"#NAME?"},{"$error":"#NAME?"},{"$error":"#NAME?"},{"$error":"#NAME?"}]
["13","D02","IV.2 Rendición de Cuentas","RM","Recurso Municipal y Ramo 28","028","RECURSOS MUNICIPALES Y RAMO 28",{"$error":"#NAME?"},{"$error":"#NAME?"},{"$error":"#NAME?"},{"$error":"#NAME?"},{"$error":"#NAME?"}]
["14","A01","I.1 Asistencia Social","RM","Recurso Municipal y Ramo 28","028","RECURSOS MUNICIPALES Y RAMO 28",{"$error":"#NAME?"},{"$error":"#NAME?"},{"$error":"#NAME?"},{"$error":"#NAME?"},{"$error":"#NAME?"}]
["14","A02","I.2 Salud Pública","RM","Recurso Municipal y Ramo 28","028","RECURSOS MUNICIPALES Y RAMO 28",{"$error":"#NAME?"},{"$error":"#NAME?"},{"$error":"#NAME?"},{"$error":"#NAME?"},{"$error":"#NAME?"}]
["14","A03","I.3 Recreación y Esparcimiento para la Convivencia Familiar","RM","Recurso Municipal y Ramo 28","028","RECURSOS MUNICIPALES Y RAMO 28",{"$error":"#NAME?"},{"$error":"#NAME?"},{"$error":"#NAME?"},{"$error":"#NAME?"},{"$error":"#NAME?"}]
["14","B01","II.1 Desarrollo Económico","10","Ramo 10 Secretaría de Economía","PMM","Red de Apoyo al Emprendedor: Puntos Mover a México",{"$error":"#NAME?"},{"$error":"#NAME?"},{"$error":"#NAME?"},{"$error":"#NAME?"},{"$error":"#NAME?"}]
["14","B01","II.1 Desarrollo Económico","RM","Recurso Municipal y Ramo 28","028","RECURSOS MUNICIPALES Y RAMO 28",{"$error":"#NAME?"},{"$error":"#NAME?"},{"$error":"#NAME?"},{"$error":"#NAME?"},{"$error":"#NAME?"}]
["14","B02","II.2 Desarrollo Urbano","33","Ramo 33 Aport Fed para Entidades Federativas y Municipios","FOR","FONDO DE APORTACIONES PARA EL FORTALECIMIENTO DE LOS MUNICIP",{"$error":"#NAME?"},{"$error":"#NAME?"},{"$error":"#NAME?"},{"$error":"#NAME?"},{"$error":"#NAME?"}]
["14","B02","II.2 Desarrollo Urbano","FE","Fondo Estatal","FDS","FONDOS DESCENTRALIZADOS PARA SEGURIDAD PUBLICA",{"$error":"#NAME?"},{"$error":"#NAME?"},{"$error":"#NAME?"},{"$error":"#NAME?"},{"$error":"#NAME?"}]
["14","B02","II.2 Desarrollo Urbano","RM","Recurso Municipal y Ramo 28","028","RECURSOS MUNICIPALES Y RAMO 28",{"$error":"#NAME?"},{"$error":"#NAME?"},{"$error":"#NAME?"},{"$error":"#NAME?"},{"$error":"#NAME?"}]
["14","B03","II.3 Obra Pública","15","Ramo 15 Sria. de Des Agrario, Territorial y Urbano (SEDATU)","ATL","Programa Prevención de Riesgos en los Asentamientos Humanos-",{"$error":"#NAME?"},{"$error":"#NAME?"},{"$error":"#NAME?"},{"$error":"#NAME?"},{"$error":"#NAME?"}]
["14","B03","II.3 Obra Pública","15","Ramo 15 Sria. de Des Agrario, Territorial y Urbano (SEDATU)","ESP","PROGRAMA RESCATE DE ESPACIOS PÚBLICOS",{"$error":"#NAME?"},{"$error":"#NAME?"},{"$error":"#NAME?"},{"$error":"#NAME?"},{"$error":"#NAME?"}]
["14","B03","II.3 Obra Pública","15","Ramo 15 Sria. de Des Agrario, Territorial y Urbano (SEDATU)","HAB","PROGRAMA HABITAT",{"$error":"#NAME?"},{"$error":"#NAME?"},{"$error":"#NAME?"},{"$error":"#NAME?"},{"$error":"#NAME?"}]
["14","B03","II.3 Obra Pública","23","Ramo 23 Provisiones Salariales y Económicas","DRE","PROYECTOS DE DESARROLLO REGIONAL",{"$error":"#NAME?"},{"$error":"#NAME?"},{"$error":"#NAME?"},{"$error":"#NAME?"},{"$error":"#NAME?"}]
["14","B03","II.3 Obra Pública","23","Ramo 23 Provisiones Salariales y Económicas","FME","FONDO METROPOLITANO",{"$error":"#NAME?"},{"$error":"#NAME?"},{"$error":"#NAME?"},{"$error":"#NAME?"},{"$error":"#NAME?"}]
["14","B03","II.3 Obra Pública","23","Ramo 23 Provisiones Salariales y Económicas","PRE","PROGRAMAS REGIONALES",{"$error":"#NAME?"},{"$error":"#NAME?"},{"$error":"#NAME?"},{"$error":"#NAME?"},{"$error":"#NAME?"}]
["14","B03","II.3 Obra Pública","33","Ramo 33 Aport Fed para Entidades Federativas y Municipios","FIS","FONDO DE APORTACIONES PARA LA INFRAESTRUCTURA SOCIAL MUNICIP",{"$error":"#NAME?"},{"$error":"#NAME?"},{"$error":"#NAME?"},{"$error":"#NAME?"},{"$error":"#NAME?"}]
["14","B03","II.3 Obra Pública","RM","Recurso Municipal y Ramo 28","028","RECURSOS MUNICIPALES Y RAMO 28",{"$error":"#NAME?"},{"$error":"#NAME?"},{"$error":"#NAME?"},{"$error":"#NAME?"},{"$error":"#NAME?"}]
["14","B04","II.4 Desarrollo Humano (Educación, Cultura y Deporte)","RM","Recurso Municipal y Ramo 28","028","RECURSOS MUNICIPALES Y RAMO 28",{"$error":"#NAME?"},{"$error":"#NAME?"},{"$error":"#NAME?"},{"$error":"#NAME?"},{"$error":"#NAME?"}]
["14","B05","II.5 Medio Ambiente","RM","Recurso Municipal y Ramo 28","028","RECURSOS MUNICIPALES Y RAMO 28",{"$error":"#NAME?"},{"$error":"#NAME?"},{"$error":"#NAME?"},{"$error":"#NAME?"},{"$error":"#NAME?"}]
["14","C01","III.1 Prevención del Delito","33","Ramo 33 Aport Fed para Entidades Federativas y Municipios","FOR","FONDO DE APORTACIONES PARA EL FORTALECIMIENTO DE LOS MUNICIP",{"$error":"#NAME?"},{"$error":"#NAME?"},{"$error":"#NAME?"},{"$error":"#NAME?"},{"$error":"#NAME?"}]
["14","C01","III.1 Prevención del Delito","FE","Fondo Estatal","FDS","FONDOS DESCENTRALIZADOS PARA SEGURIDAD PUBLICA",{"$error":"#NAME?"},{"$error":"#NAME?"},{"$error":"#NAME?"},{"$error":"#NAME?"},{"$error":"#NAME?"}]
["14","C01","III.1 Prevención del Delito","RM","Recurso Municipal y Ramo 28","028","RECURSOS MUNICIPALES Y RAMO 28",{"$error":"#NAME?"},{"$error":"#NAME?"},{"$error":"#NAME?"},{"$error":"#NAME?"},{"$error":"#NAME?"}]
["14","C04","III.4 Protección Civil","33","Ramo 33 Aport Fed para Entidades Federativas y Municipios","FOR","FONDO DE APORTACIONES PARA EL FORTALECIMIENTO DE LOS MUNICIP",{"$error":"#NAME?"},{"$error":"#NAME?"},{"$error":"#NAME?"},{"$error":"#NAME?"},{"$error":"#NAME?"}]
["14","C04","III.4 Protección Civil","RM","Recurso Municipal y Ramo 28","028","RECURSOS MUNICIPALES Y RAMO 28",{"$error":"#NAME?"},{"$error":"#NAME?"},{"$error":"#NAME?"},{"$error":"#NAME?"},{"$error":"#NAME?"}]
["14","D01","IV.1 Atención Ciudadana","RM","Recurso Municipal y Ramo 28","028","RECURSOS MUNICIPALES Y RAMO 28",{"$error":"#NAME?"},{"$error":"#NAME?"},{"$error":"#NAME?"},{"$error":"#NAME?"},{"$error":"#NAME?"}]
["14","D02","IV.2 Rendición de Cuentas","04","Ramo 04 Gobernación","SUB","SUBSIDIO EN MATERIA DE SEGURIDAD PÚBLICA A ENTIDADES FEDERAT",{"$error":"#NAME?"},{"$error":"#NAME?"},{"$error":"#NAME?"},{"$error":"#NAME?"},{"$error":"#NAME?"}]
["14","D02","IV.2 Rendición de Cuentas","10","Ramo 10 Secretaría de Economía","PMM","Red de Apoyo al Emprendedor: Puntos Mover a México",{"$error":"#NAME?"},{"$error":"#NAME?"},{"$error":"#NAME?"},{"$error":"#NAME?"},{"$error":"#NAME?"}]
["14","D02","IV.2 Rendición de Cuentas","15","Ramo 15 Sria. de Des Agrario, Territorial y Urbano (SEDATU)","ATL","Programa Prevención de Riesgos en los Asentamientos Humanos-",{"$error":"#NAME?"},{"$error":"#NAME?"},{"$error":"#NAME?"},{"$error":"#NAME?"},{"$error":"#NAME?"}]
["14","D02","IV.2 Rendición de Cuentas","15","Ramo 15 Sria. de Des Agrario, Territorial y Urbano (SEDATU)","ESP","PROGRAMA RESCATE DE ESPACIOS PÚBLICOS",{"$error":"#NAME?"},{"$error":"#NAME?"},{"$error":"#NAME?"},{"$error":"#NAME?"},{"$error":"#NAME?"}]
["14","D02","IV.2 Rendición de Cuentas","15","Ramo 15 Sria. de Des Agrario, Territorial y Urbano (SEDATU)","HAB","PROGRAMA HABITAT",{"$error":"#NAME?"},{"$error":"#NAME?"},{"$error":"#NAME?"},{"$error":"#NAME?"},{"$error":"#NAME?"}]
["14","D02","IV.2 Rendición de Cuentas","20","Ramo 20 Desarrollo Social","PET","PET",{"$error":"#NAME?"},{"$error":"#NAME?"},{"$error":"#NAME?"},{"$error":"#NAME?"},{"$error":"#NAME?"}]
["14","D02","IV.2 Rendición de Cuentas","23","Ramo 23 Provisiones Salariales y Económicas","DRE","PROYECTOS DE DESARROLLO REGIONAL",{"$error":"#NAME?"},{"$error":"#NAME?"},{"$error":"#NAME?"},{"$error":"#NAME?"},{"$error":"#NAME?"}]
["14","D02","IV.2 Rendición de Cuentas","23","Ramo 23 Provisiones Salariales y Económicas","FCO","Fondo de Contingencias",{"$error":"#NAME?"},{"$error":"#NAME?"},{"$error":"#NAME?"},{"$error":"#NAME?"},{"$error":"#NAME?"}]
["14","D02","IV.2 Rendición de Cuentas","23","Ramo 23 Provisiones Salariales y Económicas","PRE","PROGRAMAS REGIONALES",{"$error":"#NAME?"},{"$error":"#NAME?"},{"$error":"#NAME?"},{"$error":"#NAME?"},{"$error":"#NAME?"}]
["14","D02","IV.2 Rendición de Cuentas","33","Ramo 33 Aport Fed para Entidades Federativas y Municipios","FIS","FONDO DE APORTACIONES PARA LA INFRAESTRUCTURA SOCIAL MUNICIP",{"$error":"#NAME?"},{"$error":"#NAME?"},{"$error":"#NAME?"},{"$error":"#NAME?"},{"$error":"#NAME?"}]
["14","D02","IV.2 Rendición de Cuentas","33","Ramo 33 Aport Fed para Entidades Federativas y Municipios","FOR","FONDO DE APORTACIONES PARA EL FORTALECIMIENTO DE LOS MUNICIP",{"$error":"#NAME?"},{"$error":"#NAME?"},{"$error":"#NAME?"},{"$error":"#NAME?"},{"$error":"#NAME?"}]
["14","D02","IV.2 Rendición de Cuentas","FE","Fondo Estatal","FDS","FONDOS DESCENTRALIZADOS PARA SEGURIDAD PUBLICA",{"$error":"#NAME?"},{"$error":"#NAME?"},{"$error":"#NAME?"},{"$error":"#NAME?"},{"$error":"#NAME?"}]
["14","D02","IV.2 Rendición de Cuentas","RM","Recurso Municipal y Ramo 28","028","RECURSOS MUNICIPALES Y RAMO 28",{"$error":"#NAME?"},{"$error":"#NAME?"},{"$error":"#NAME?"},{"$error":"#NAME?"},{"$error":"#NAME?"}]
["14","D02","IV.2 Rendición de Cuentas","RM","Recurso Municipal y Ramo 28","#","Sin asignar",{"$error":"#NAME?"},{"$error":"#NAME?"},{"$error":"#NAME?"},{"$error":"#NAME?"},{"$error":"#NAME?"}]
["14","D03","IV.3 Transperencia y Modernización Administrativa","RM","Recurso Municipal y Ramo 28","028","RECURSOS MUNICIPALES Y RAMO 28",{"$error":"#NAME?"},{"$error":"#NAME?"},{"$error":"#NAME?"},{"$error":"#NAME?"},{"$error":"#NAME?"}]
["15","A01","I.1 Asistencia Social","RM","Recurso Municipal y Ramo 28","028","RECURSOS MUNICIPALES Y RAMO 28",{"$error":"#NAME?"},{"$error":"#NAME?"},{"$error":"#NAME?"},{"$error":"#NAME?"},{"$error":"#NAME?"}]
["15","A02","I.2 Salud Pública","RM","Recurso Municipal y Ramo 28","028","RECURSOS MUNICIPALES Y RAMO 28",{"$error":"#NAME?"},{"$error":"#NAME?"},{"$error":"#NAME?"},{"$error":"#NAME?"},{"$error":"#NAME?"}]
["15","A03","I.3 Recreación y Esparcimiento para la Convivencia Familiar","33","Ramo 33 Aport Fed para Entidades Federativas y Municipios","FOR","FONDO DE APORTACIONES PARA EL FORTALECIMIENTO DE LOS MUNICIP",{"$error":"#NAME?"},{"$error":"#NAME?"},{"$error":"#NAME?"},{"$error":"#NAME?"},{"$error":"#NAME?"}]
["15","A03","I.3 Recreación y Esparcimiento para la Convivencia Familiar","RM","Recurso Municipal y Ramo 28","028","RECURSOS MUNICIPALES Y RAMO 28",{"$error":"#NAME?"},{"$error":"#NAME?"},{"$error":"#NAME?"},{"$error":"#NAME?"},{"$error":"#NAME?"}]
["15","B01","II.1 Desarrollo Económico","RM","Recurso Municipal y Ramo 28","028","RECURSOS MUNICIPALES Y RAMO 28",{"$error":"#NAME?"},{"$error":"#NAME?"},{"$error":"#NAME?"},{"$error":"#NAME?"},{"$error":"#NAME?"}]
["15","B02","II.2 Desarrollo Urbano","33","Ramo 33 Aport Fed para Entidades Federativas y Municipios","FOR","FONDO DE APORTACIONES PARA EL FORTALECIMIENTO DE LOS MUNICIP",{"$error":"#NAME?"},{"$error":"#NAME?"},{"$error":"#NAME?"},{"$error":"#NAME?"},{"$error":"#NAME?"}]
["15","B02","II.2 Desarrollo Urbano","FE","Fondo Estatal","FDS","FONDOS DESCENTRALIZADOS PARA SEGURIDAD PUBLICA",{"$error":"#NAME?"},{"$error":"#NAME?"},{"$error":"#NAME?"},{"$error":"#NAME?"},{"$error":"#NAME?"}]
["15","B02","II.2 Desarrollo Urbano","RM","Recurso Municipal y Ramo 28","028","RECURSOS MUNICIPALES Y RAMO 28",{"$error":"#NAME?"},{"$error":"#NAME?"},{"$error":"#NAME?"},{"$error":"#NAME?"},{"$error":"#NAME?"}]
["15","B03","II.3 Obra Pública","15","Ramo 15 Sria. de Des Agrario, Territorial y Urbano (SEDATU)","ESP","PROGRAMA RESCATE DE ESPACIOS PÚBLICOS",{"$error":"#NAME?"},{"$error":"#NAME?"},{"$error":"#NAME?"},{"$error":"#NAME?"},{"$error":"#NAME?"}]
["15","B03","II.3 Obra Pública","15","Ramo 15 Sria. de Des Agrario, Territorial y Urbano (SEDATU)","HAB","PROGRAMA HABITAT",{"$error":"#NAME?"},{"$error":"#NAME?"},{"$error":"#NAME?"},{"$error":"#NAME?"},{"$error":"#NAME?"}]
["15","B03","II.3 Obra Pública","23","Ramo 23 Provisiones Salariales y Económicas","FCO","Fondo de Contingencias",{"$error":"#NAME?"},{"$error":"#NAME?"},{"$error":"#NAME?"},{"$error":"#NAME?"},{"$error":"#NAME?"}]
["15","B03","II.3 Obra Pública","23","Ramo 23 Provisiones Salariales y Económicas","FPM","FPM",{"$error":"#NAME?"},{"$error":"#NAME?"},{"$error":"#NAME?"},{"$error":"#NAME?"},{"$error":"#NAME?"}]
["15","B03","II.3 Obra Pública","33","Ramo 33 Aport Fed para Entidades Federativas y Municipios","FIS","FONDO DE APORTACIONES PARA LA INFRAESTRUCTURA SOCIAL MUNICIP",{"$error":"#NAME?"},{"$error":"#NAME?"},{"$error":"#NAME?"},{"$error":"#NAME?"},{"$error":"#NAME?"}]
["15","B03","II.3 Obra Pública","RM","Recurso Municipal y Ramo 28","028","RECURSOS MUNICIPALES Y RAMO 28",{"$error":"#NAME?"},{"$error":"#NAME?"},{"$error":"#NAME?"},{"$error":"#NAME?"},{"$error":"#NAME?"}]
["15","B04","II.4 Desarrollo Humano (Educación, Cultura y Deporte)","RM","Recurso Municipal y Ramo 28","028","RECURSOS MUNICIPALES Y RAMO 28",{"$error":"#NAME?"},{"$error":"#NAME?"},{"$error":"#NAME?"},{"$error":"#NAME?"},{"$error":"#NAME?"}]
["15","B05","II.5 Medio Ambiente","RM","Recurso Municipal y Ramo 28","028","RECURSOS MUNICIPALES Y RAMO 28",{"$error":"#NAME?"},{"$error":"#NAME?"},{"$error":"#NAME?"},{"$error":"#NAME?"},{"$error":"#NAME?"}]
["15","C01","III.1 Prevención del Delito","04","Ramo 04 Gobernación","SUB","SUBSIDIO EN MATERIA DE SEGURIDAD PÚBLICA A ENTIDADES FEDERAT",{"$error":"#NAME?"},{"$error":"#NAME?"},{"$error":"#NAME?"},{"$error":"#NAME?"},{"$error":"#NAME?"}]
["15","C01","III.1 Prevención del Delito","33","Ramo 33 Aport Fed para Entidades Federativas y Municipios","FOR","FONDO DE APORTACIONES PARA EL FORTALECIMIENTO DE LOS MUNICIP",{"$error":"#NAME?"},{"$error":"#NAME?"},{"$error":"#NAME?"},{"$error":"#NAME?"},{"$error":"#NAME?"}]
["15","C01","III.1 Prevención del Delito","RM","Recurso Municipal y Ramo 28","028","RECURSOS MUNICIPALES Y RAMO 28",{"$error":"#NAME?"},{"$error":"#NAME?"},{"$error":"#NAME?"},{"$error":"#NAME?"},{"$error":"#NAME?"}]
["15","C03","III.3 Readaptación y Reinserción Social","RM","Recurso Municipal y Ramo 28","028","RECURSOS MUNICIPALES Y RAMO 28",{"$error":"#NAME?"},{"$error":"#NAME?"},{"$error":"#NAME?"},{"$error":"#NAME?"},{"$error":"#NAME?"}]
["15","C04","III.4 Protección Civil","33","Ramo 33 Aport Fed para Entidades Federativas y Municipios","FOR","FONDO DE APORTACIONES PARA EL FORTALECIMIENTO DE LOS MUNICIP",{"$error":"#NAME?"},{"$error":"#NAME?"},{"$error":"#NAME?"},{"$error":"#NAME?"},{"$error":"#NAME?"}]
["15","C04","III.4 Protección Civil","RM","Recurso Municipal y Ramo 28","028","RECURSOS MUNICIPALES Y RAMO 28",{"$error":"#NAME?"},{"$error":"#NAME?"},{"$error":"#NAME?"},{"$error":"#NAME?"},{"$error":"#NAME?"}]
["15","D01","IV.1 Atención Ciudadana","RM","Recurso Municipal y Ramo 28","028","RECURSOS MUNICIPALES Y RAMO 28",{"$error":"#NAME?"},{"$error":"#NAME?"},{"$error":"#NAME?"},{"$error":"#NAME?"},{"$error":"#NAME?"}]
["15","D02","IV.2 Rendición de Cuentas","04","Ramo 04 Gobernación","SUB","SUBSIDIO EN MATERIA DE SEGURIDAD PÚBLICA A ENTIDADES FEDERAT",{"$error":"#NAME?"},{"$error":"#NAME?"},{"$error":"#NAME?"},{"$error":"#NAME?"},{"$error":"#NAME?"}]
["15","D02","IV.2 Rendición de Cuentas","15","Ramo 15 Sria. de Des Agrario, Territorial y Urbano (SEDATU)","ESP","PROGRAMA RESCATE DE ESPACIOS PÚBLICOS",{"$error":"#NAME?"},{"$error":"#NAME?"},{"$error":"#NAME?"},{"$error":"#NAME?"},{"$error":"#NAME?"}]
["15","D02","IV.2 Rendición de Cuentas","15","Ramo 15 Sria. de Des Agrario, Territorial y Urbano (SEDATU)","HAB","PROGRAMA HABITAT",{"$error":"#NAME?"},{"$error":"#NAME?"},{"$error":"#NAME?"},{"$error":"#NAME?"},{"$error":"#NAME?"}]
["15","D02","IV.2 Rendición de Cuentas","23","Ramo 23 Provisiones Salariales y Económicas","FAI","FAI",{"$error":"#NAME?"},{"$error":"#NAME?"},{"$error":"#NAME?"},{"$error":"#NAME?"},{"$error":"#NAME?"}]
["15","D02","IV.2 Rendición de Cuentas","23","Ramo 23 Provisiones Salariales y Económicas","FCO","Fondo de Contingencias",{"$error":"#NAME?"},{"$error":"#NAME?"},{"$error":"#NAME?"},{"$error":"#NAME?"},{"$error":"#NAME?"}]
["15","D02","IV.2 Rendición de Cuentas","23","Ramo 23 Provisiones Salariales y Económicas","FPM","FPM",{"$error":"#NAME?"},{"$error":"#NAME?"},{"$error":"#NAME?"},{"$error":"#NAME?"},{"$error":"#NAME?"}]
["15","D02","IV.2 Rendición de Cuentas","33","Ramo 33 Aport Fed para Entidades Federativas y Municipios","FIS","FONDO DE APORTACIONES PARA LA INFRAESTRUCTURA SOCIAL MUNICIP",{"$error":"#NAME?"},{"$error":"#NAME?"},{"$error":"#NAME?"},{"$error":"#NAME?"},{"$error":"#NAME?"}]
["15","D02","IV.2 Rendición de Cuentas","33","Ramo 33 Aport Fed para Entidades Federativas y Municipios","FOR","FONDO DE APORTACIONES PARA EL FORTALECIMIENTO DE LOS MUNICIP",{"$error":"#NAME?"},{"$error":"#NAME?"},{"$error":"#NAME?"},{"$error":"#NAME?"},{"$error":"#NAME?"}]
["15","D02","IV.2 Rendición de Cuentas","RM","Recurso Municipal y Ramo 28","028","RECURSOS MUNICIPALES Y RAMO 28",{"$error":"#NAME?"},{"$error":"#NAME?"},{"$error":"#NAME?"},{"$error":"#NAME?"},{"$error":"#NAME?"}]
["15","D03","IV.3 Transperencia y Modernización Administrativa","04","Ramo 04 Gobernación","SUB","SUBSIDIO EN MATERIA DE SEGURIDAD PÚBLICA A ENTIDADES FEDERAT",{"$error":"#NAME?"},{"$error":"#NAME?"},{"$error":"#NAME?"},{"$error":"#NAME?"},{"$error":"#NAME?"}]
["15","D03","IV.3 Transperencia y Modernización Administrativa","33","Ramo 33 Aport Fed para Entidades Federativas y Municipios","FOR","FONDO DE APORTACIONES PARA EL FORTALECIMIENTO DE LOS MUNICIP",{"$error":"#NAME?"},{"$error":"#NAME?"},{"$error":"#NAME?"},{"$error":"#NAME?"},{"$error":"#NAME?"}]
["15","D03","IV.3 Transperencia y Modernización Administrativa","RM","Recurso Municipal y Ramo 28","028","RECURSOS MUNICIPALES Y RAMO 28",{"$error":"#NAME?"},{"$error":"#NAME?"},{"$error":"#NAME?"},{"$error":"#NAME?"},{"$error":"#NAME?"}]
["Resultado total","","","","","","",{"$error":"#NAME?"},{"$error":"#NAME?"},{"$error":"#NAME?"},{"$error":"#NAME?"},{"$error":"#NAME?"}]